fUSD/lending_fUSD_20260605
["ID","MTS","AMOUNT","RATE_DAILY","PERIOD"]
[424102863,1780590795000,-414.37742792,0.00014939,2]
[424102862,1780590795000,-150.0,0.00014938,2]
[424102864,1780590796000,163.55,0.000149,2]
[424102865,1780590818000,283.43720469,0.00014942,7]
[424102866,1780590819000,283.43720469,0.00015241,7]
[424102867,1780590846000,-150.0,0.00014939,2]
[424102868,1780590900000,-500.0,0.00014938,2]
[424102869,1780590901000,198.48085874,0.00014838,2]
[424102901,1780590937000,-500.0,0.00014999,2]
[424102871,1780590937000,-1200.0,0.00014937,2]
[424102872,1780590937000,-1200.0,0.00014937,2]
[424102873,1780590937000,-300.0,0.00014937,2]
[424102874,1780590937000,-500.0,0.00014938,2]
[424102877,1780590937000,-500.0,0.00014938,2]
[424102876,1780590937000,-500.0,0.00014938,2]
[424102878,1780590937000,-500.0,0.00014938,2]
[424102879,1780590937000,-500.0,0.00014938,2]
[424102881,1780590937000,-500.0,0.00014938,2]
[424102880,1780590937000,-351.7616055,0.00014938,2]
[424102882,1780590937000,-500.0,0.00014938,2]
[424102883,1780590937000,-500.0,0.00014938,2]
[424102885,1780590937000,-500.0,0.00014938,2]
[424102884,1780590937000,-533.76874086,0.00014938,2]
[424102875,1780590937000,-500.0,0.00014938,2]
[424102888,1780590937000,-500.0,0.00014938,2]
[424102900,1780590937000,-331.75,0.00014999,2]
[424102898,1780590937000,-500.0,0.00014998,2]
[424102899,1780590937000,-561.60919566,0.00014998,2]
[424102897,1780590937000,-500.0,0.00014998,2]
[424102896,1780590937000,-637.14683468,0.00014998,2]
[424102894,1780590937000,-500.0,0.00014998,2]
[424102895,1780590937000,-500.0,0.00014998,2]
[424102890,1780590937000,-212.83554401,0.00014938,2]
[424102892,1780590937000,-192.72127344,0.00014998,2]
[424102891,1780590937000,-215.73365239,0.00014948,2]
[424102889,1780590937000,-500.0,0.00014938,2]
[424102887,1780590937000,-500.0,0.00014938,2]
[424102893,1780590937000,-231.04286113,0.00014998,2]
[424102886,1780590937000,-500.0,0.00014938,2]
[424102902,1780590938000,-500.0,0.00014999,2]
[424102903,1780590938000,-500.0,0.00014999,2]
[424102904,1780590953000,-150.0,0.00015149,2]
[424102905,1780590954000,500.0,0.00014999,2]
[424102906,1780590954000,500.0,0.00014999,2]
[424102907,1780591007000,-248.25188704,0.00015689,7]
[424102908,1780591060000,-152.0,0.00015187,2]
[424102911,1780591062000,500.0,0.00014999,2]
[424102909,1780591062000,-150.0,0.00015187,2]
[424102910,1780591062000,-4.98,0.00015187,2]
[424102914,1780591088000,402.02185552,0.00014999,2]
[424102913,1780591088000,500.0,0.00014999,2]
[424102912,1780591088000,500.0,0.00014999,2]
[424102915,1780591101000,500.0,0.00014999,2]
[424102916,1780591141000,250.0,0.00014,2]
[424102919,1780591321000,500.0,0.00014999,2]
[424102918,1780591321000,500.0,0.00014999,2]
[424102923,1780591322000,500.0,0.00014999,2]
[424102922,1780591322000,500.0,0.00014999,2]
[424102921,1780591322000,500.0,0.00014999,2]
[424102920,1780591322000,500.0,0.00014999,2]
[424102924,1780591323000,500.0,0.00014999,2]
[424102926,1780591323000,500.0,0.00014999,2]
[424102925,1780591323000,500.0,0.00014999,2]
[424102927,1780591324000,297.57295416,0.00014999,2]
[424102931,1780591351000,500.0,0.00014999,2]
[424102930,1780591351000,500.0,0.00014999,2]
[424102929,1780591351000,500.0,0.00014999,2]
[424102928,1780591351000,500.0,0.00014999,2]
[424102933,1780591352000,500.0,0.00014999,2]
[424102932,1780591352000,500.0,0.00014999,2]
[424102937,1780591353000,500.0,0.00014999,2]
[424102936,1780591353000,500.0,0.00014999,2]
[424102935,1780591353000,500.0,0.00014999,2]
[424102934,1780591353000,500.0,0.00014999,2]
[424102938,1780591354000,500.0,0.00014999,2]
[424102939,1780591355000,500.0,0.00014999,2]
[424102940,1780591355000,500.0,0.00014999,2]
[424102942,1780591356000,500.0,0.00014999,2]
[424102941,1780591356000,500.0,0.00014999,2]
[424102943,1780591401000,500.0,0.00014999,2]
[424102946,1780591402000,393.59764713,0.00014999,2]
[424102945,1780591402000,500.0,0.00014999,2]
[424102944,1780591402000,500.0,0.00014999,2]
[424102947,1780591448000,171.82,0.00012353,2]
[424102948,1780591468000,500.0,0.00014999,2]
[424102949,1780591469000,160.52,0.00014999,2]
[424102951,1780591502000,500.0,0.00014999,2]
[424102950,1780591502000,500.0,0.00014999,2]
[424102952,1780591503000,500.0,0.00014999,2]
[424102954,1780591503000,500.0,0.00014999,2]
[424102953,1780591503000,500.0,0.00014999,2]
[424102957,1780591504000,500.0,0.00014999,2]
[424102956,1780591504000,500.0,0.00014999,2]
[424102955,1780591504000,500.0,0.00014999,2]
[424102960,1780591505000,500.0,0.00014999,2]
[424102959,1780591505000,500.0,0.00014999,2]
[424102958,1780591505000,500.0,0.00014999,2]
[424102962,1780591506000,500.0,0.00014999,2]
[424102961,1780591506000,500.0,0.00014999,2]
[424102964,1780591507000,500.0,0.00014999,2]
[424102963,1780591507000,500.0,0.00014999,2]
[424102965,1780591534000,500.0,0.00014999,2]
[424102966,1780591534000,500.0,0.00014999,2]
[424102969,1780591535000,500.0,0.00014999,2]
[424102968,1780591535000,500.0,0.00014999,2]
[424102967,1780591535000,500.0,0.00014999,2]
[424102970,1780591536000,394.45222685,0.00014999,2]
[424102971,1780591537000,157.36949474,0.0001549,7]
[424102973,1780591559000,500.0,0.00014999,2]
[424102972,1780591559000,500.0,0.00014999,2]
[424102975,1780591560000,500.0,0.00014999,2]
[424102974,1780591560000,500.0,0.00014999,2]
[424102976,1780591561000,500.0,0.00014999,2]
[424102977,1780591561000,500.0,0.00014999,2]
[424102978,1780591561000,500.0,0.00014999,2]
[424102979,1780591562000,500.0,0.00014999,2]
[424102981,1780591562000,500.0,0.00014999,2]
[424102980,1780591562000,500.0,0.00014999,2]
[424102985,1780591563000,500.0,0.00014999,2]
[424102984,1780591563000,500.0,0.00014999,2]
[424102983,1780591563000,500.0,0.00014999,2]
[424102982,1780591563000,500.0,0.00014999,2]
[424102986,1780591564000,500.0,0.00014999,2]
[424102987,1780591612000,614.43,0.00014999,2]
[424102988,1780591612000,614.43,0.00014999,2]
[424102989,1780591613000,614.43,0.00014999,2]
[424102991,1780591613000,614.43,0.00014999,2]
[424102990,1780591613000,614.43,0.00014999,2]
[424102993,1780591614000,614.43,0.00014999,2]
[424102992,1780591614000,614.43,0.00014999,2]
[424102994,1780591614000,614.43,0.00014999,2]
[424102998,1780591615000,614.43,0.00014999,2]
[424102997,1780591615000,614.43,0.00014999,2]
[424102996,1780591615000,614.43,0.00014999,2]
[424102995,1780591615000,614.43,0.00014999,2]
[424103001,1780591616000,614.43,0.00014999,2]
[424103000,1780591616000,614.43,0.00014999,2]
[424102999,1780591616000,614.43,0.00014999,2]
[424103002,1780591634000,-500.0,0.00015084,2]
[424103004,1780591635000,-243.76010863,0.00015182,2]
[424103003,1780591635000,-281.5298601,0.00015182,2]
[424103005,1780591687000,-168.25,0.00015182,2]
[424103006,1780591703000,-111.63828515,0.00015182,2]
[424103007,1780591705000,10333.32731178,0.00030136,120]
[424103008,1780591740000,2000.0,0.00030135,120]
[424103009,1780591754000,-151.0,0.00015182,2]
[424103010,1780591808000,-500.0,0.00015082,2]
[424103029,1780591831000,-137.93176314,0.00015182,2]
[424103028,1780591831000,-13.06823686,0.00015182,2]
[424103024,1780591831000,-151.0,0.00015182,2]
[424103025,1780591831000,-10.34120734,0.00015182,2]
[424103017,1780591831000,-153.0,0.00015182,2]
[424103015,1780591831000,-150.0,0.00015182,2]
[424103016,1780591831000,-151.0,0.00015182,2]
[424103021,1780591831000,-150.0,0.00015182,2]
[424103020,1780591831000,-151.0,0.00015182,2]
[424103023,1780591831000,-150.0,0.00015182,2]
[424103018,1780591831000,-150.0,0.00015182,2]
[424103019,1780591831000,-151.0,0.00015182,2]
[424103032,1780591831000,-500.0,0.00015183,2]
[424103013,1780591831000,-153.0,0.00015182,2]
[424103014,1780591831000,-150.0,0.00015182,2]
[424103022,1780591831000,-151.0,0.00015182,2]
[424103027,1780591831000,-151.0,0.00015182,2]
[424103046,1780591831000,-151.0,0.00015184,2]
[424103026,1780591831000,-139.65879266,0.00015182,2]
[424103033,1780591831000,-150.0,0.00015184,2]
[424103048,1780591831000,-133.58444009,0.00015184,2]
[424103047,1780591831000,-152.0,0.00015184,2]
[424103042,1780591831000,-161.73000279,0.00015184,2]
[424103044,1780591831000,-50.2524893,0.00015184,2]
[424103043,1780591831000,-595.75029497,0.00015184,2]
[424103040,1780591831000,-500.0,0.00015184,2]
[424103041,1780591831000,-500.0,0.00015184,2]
[424103045,1780591831000,-593.12643696,0.00015184,2]
[424103039,1780591831000,-152.0,0.00015184,2]
[424103038,1780591831000,-150.0,0.00015184,2]
[424103035,1780591831000,-151.0,0.00015184,2]
[424103036,1780591831000,-151.0,0.00015184,2]
[424103034,1780591831000,-152.0,0.00015184,2]
[424103030,1780591831000,-151.0,0.00015182,2]
[424103037,1780591831000,-153.0,0.00015184,2]
[424103031,1780591831000,-151.0,0.00015182,2]
[424103077,1780591832000,-451.0,0.00015185,2]
[424103084,1780591832000,-150.0,0.00015186,2]
[424103078,1780591832000,-448.0,0.00015186,2]
[424103093,1780591832000,-150.0,0.00015186,2]
[424103082,1780591832000,-451.0,0.00015186,2]
[424103092,1780591832000,-457.0,0.00015186,2]
[424103080,1780591832000,-451.0,0.00015186,2]
[424103090,1780591832000,-325.6698361,0.00015186,2]
[424103095,1780591832000,-445.0,0.00015186,2]
[424103091,1780591832000,-120.3301639,0.00015186,2]
[424103097,1780591832000,-500.0,0.00015186,2]
[424103102,1780591832000,-151.0,0.00015187,2]
[424103104,1780591832000,-139.81339064,0.00015187,2]
[424103101,1780591832000,-151.0,0.00015187,2]
[424103106,1780591832000,-150.0,0.00015187,2]
[424103099,1780591832000,-152.0,0.00015187,2]
[424103107,1780591832000,-120.35315624,0.00015187,2]
[424103100,1780591832000,-151.0,0.00015187,2]
[424103088,1780591832000,-449.0,0.00015186,2]
[424103103,1780591832000,-10.18660936,0.00015187,2]
[424103108,1780591832000,-334.64684376,0.00015187,2]
[424103109,1780591832000,-444.0,0.00015187,2]
[424103111,1780591832000,-392.25942082,0.00015187,2]
[424103105,1780591832000,-150.0,0.00015187,2]
[424103086,1780591832000,-442.0,0.00015186,2]
[424103068,1780591832000,-458.0,0.00015185,2]
[424103070,1780591832000,-449.0,0.00015185,2]
[424103050,1780591832000,-441.0,0.00015185,2]
[424103049,1780591832000,-17.41555991,0.00015184,2]
[424103052,1780591832000,-449.0,0.00015185,2]
[424103060,1780591832000,-151.0,0.00015185,2]
[424103051,1780591832000,-465.5363384,0.00015185,2]
[424103061,1780591832000,-443.0,0.00015185,2]
[424103062,1780591832000,-453.0,0.00015185,2]
[424103053,1780591832000,-392.58713946,0.00015185,2]
[424103054,1780591832000,-58.41286054,0.00015185,2]
[424103059,1780591832000,-441.0,0.00015185,2]
[424103056,1780591832000,-442.0,0.00015185,2]
[424103055,1780591832000,-152.0,0.00015185,2]
[424103058,1780591832000,-453.0,0.00015185,2]
[424103057,1780591832000,-451.0,0.00015185,2]
[424103063,1780591832000,-452.0,0.00015185,2]
[424103065,1780591832000,-449.0,0.00015185,2]
[424103119,1780591832000,-3891.0,0.0001519,2]
[424103067,1780591832000,-447.0,0.00015185,2]
[424103069,1780591832000,-150.0,0.00015185,2]
[424103066,1780591832000,-453.0,0.00015185,2]
[424103071,1780591832000,-453.0,0.00015185,2]
[424103073,1780591832000,-151.0,0.00015185,2]
[424103072,1780591832000,-449.0,0.00015185,2]
[424103075,1780591832000,-453.0,0.00015185,2]
[424103120,1780591832000,-151.0,0.00015194,2]
[424103074,1780591832000,-454.0,0.00015185,2]
[424103121,1780591832000,-152.0,0.00015214,2]
[424103141,1780591832000,-295.26888205,0.00015946,7]
[424103143,1780591832000,-166.66,0.00015966,2]
[424103142,1780591832000,-8451.0,0.0001595,2]
[424103145,1780591832000,-150.0,0.00016011,2]
[424103144,1780591832000,-300.0,0.00016,2]
[424103146,1780591832000,-152.0,0.00016081,2]
[424103150,1780591832000,-236.05424213,0.00016402,7]
[424103149,1780591832000,-166.66,0.00016295,2]
[424103151,1780591832000,-166.66,0.00016624,2]
[424103160,1780591832000,-500.0,0.00017121,2]
[424103152,1780591832000,-500.0,0.00016701,2]
[424103148,1780591832000,-152.0,0.00016287,2]
[424103153,1780591832000,-300.0,0.00016701,2]
[424103156,1780591832000,-283.43720469,0.00016735,7]
[424103159,1780591832000,-166.66,0.00016953,2]
[424103154,1780591832000,-250.0,0.00016701,2]
[424103155,1780591832000,-500.0,0.00016701,2]
[424103158,1780591832000,-791.09551385,0.00016878,2]
[424103162,1780591832000,-200.0,0.00017532,2]
[424103161,1780591832000,-166.66,0.00017282,2]
[424103163,1780591832000,-2000.0,0.0001767,2]
[424103164,1780591832000,-7845.0,0.00017845,2]
[424103165,1780591832000,-350.0,0.00018,2]
[424103112,1780591832000,-457.0,0.00015187,2]
[424103157,1780591832000,-291.03,0.00016796,2]
[424103140,1780591832000,-215.73365239,0.00015852,2]
[424103064,1780591832000,-153.0,0.00015185,2]
[424103136,1780591832000,-278.0,0.00015693,2]
[424103113,1780591832000,-152.0,0.00015187,2]
[424103114,1780591832000,-146.02,0.00015187,2]
[424103115,1780591832000,-151.0,0.00015187,2]
[424103117,1780591832000,-150.0,0.00015188,2]
[424103118,1780591832000,-151.0,0.00015188,2]
[424103116,1780591832000,-152.0,0.00015187,2]
[424103123,1780591832000,-160.0,0.00015257,2]
[424103135,1780591832000,-283.43720469,0.00015689,7]
[424103122,1780591832000,-150.0,0.0001524,2]
[424103133,1780591832000,-749.38,0.00015555,2]
[424103134,1780591832000,-166.66,0.00015636,2]
[424103124,1780591832000,-1852.42,0.00015354,2]
[424103110,1780591832000,-57.74057918,0.00015187,2]
[424103125,1780591832000,-6911.0965322,0.00015375,2]
[424103130,1780591832000,-1000.0,0.00015506,2]
[424103139,1780591832000,-887.52575196,0.00015767,2]
[424103137,1780591832000,-2000.0,0.00015706,2]
[424103127,1780591832000,-150.0,0.00015391,2]
[424103131,1780591832000,-1369.39,0.00015521,2]
[424103147,1780591832000,-283.43720469,0.00016137,7]
[424103138,1780591832000,-200.0,0.00015756,2]
[424103132,1780591832000,-150.0,0.00015542,2]
[424103126,1780591832000,-859.42,0.00015386,2]
[424103129,1780591832000,-51795.83,0.00015505,2]
[424103128,1780591832000,-500.0,0.0001546,2]
[424103168,1780591833000,-169.59,0.00019485,2]
[424103172,1780591833000,-14921.44329665,0.0001952,2]
[424103167,1780591833000,-6325.0,0.00019236,2]
[424103173,1780591833000,-13526.86833016,0.0001952,2]
[424103166,1780591833000,-6325.0,0.00018541,2]
[424103169,1780591833000,-169.59,0.00019485,2]
[424103171,1780591833000,-6816.1962,0.0001952,2]
[424103170,1780591833000,-600.0,0.000195,7]
[424103175,1780591833000,-33250.5141,0.0001962,2]
[424103174,1780591833000,-1200.0,0.000196,7]
[424103181,1780591833000,-496.77874622,0.0001962,2]
[424103179,1780591833000,-15549.11792557,0.0001962,2]
[424103177,1780591833000,-18779.87377644,0.0001962,2]
[424103178,1780591833000,-13806.73083157,0.0001962,2]
[424103182,1780591833000,-1081.52417762,0.0001962,2]
[424103180,1780591833000,-39986.90764205,0.0001962,2]
[424103184,1780591833000,-470.40422208,0.0001962,2]
[424103176,1780591833000,-2000.0,0.0001962,2]
[424103183,1780591833000,-2638.48115706,0.0001962,2]
[424103195,1780591837000,-58.36555208,0.0001962,2]
[424103193,1780591837000,-166.66,0.00019516,2]
[424103194,1780591837000,-15215.50494397,0.0001962,2]
[424103196,1780591839000,-2206.12181778,0.0001962,2]
[424103198,1780591840000,-1384805.48724982,0.0001962,2]
[424103197,1780591840000,-650.4944148,0.0001962,2]
[424103199,1780591840000,-260.99234618,0.0001962,2]
[424103201,1780591840000,-1511.0,0.0001962,2]
[424103200,1780591840000,-2365.275,0.0001962,2]
[424103202,1780591840000,-344.09,0.0001962,2]
[424103207,1780591841000,-3097.13407544,0.0001962,2]
[424103205,1780591841000,-1039.33133656,0.0001962,2]
[424103240,1780591842000,-323.81230006,0.00019619,2]
[424103242,1780591843000,-42708.81094139,0.0001962,2]
[424103241,1780591843000,-176.18769994,0.00019619,2]
[424103248,1780591844000,-173187.57853915,0.0001962,2]
[424103249,1780591844000,-5617.79779327,0.0001962,2]
[424103247,1780591844000,-952927.57384337,0.0001962,2]
[424103254,1780591845000,-38617.30100095,0.0001962,2]
[424103253,1780591845000,-484.05,0.0001962,2]
[424103255,1780591846000,-1946.5629442,0.0001962,2]
[424103257,1780591861000,-248.88844009,0.0001962,2]
[424103258,1780591862000,1000.0,0.0003013,120]
[424103260,1780591876000,1000.0,0.0003013,120]
[424103259,1780591876000,-1096.92461582,0.0001961,2]
[424103261,1780591893000,-400.0,0.0001881,2]
[424103262,1780591898000,1028.0,0.0003013,120]
[424103263,1780591899000,155.05485952,0.00015182,7]
[424103266,1780591922000,646.0,0.0003013,120]
[424103265,1780591922000,462.758223,0.000245,120]
[424103267,1780591923000,883.0,0.0003013,120]
[424103268,1780591924000,1692.0,0.0003013,120]
[424103269,1780591925000,1196.0,0.0003013,120]
[424103270,1780591925000,1479.0,0.0003013,120]
[424103271,1780591926000,914.0,0.0003013,120]
[424103272,1780591927000,1711.0,0.0003013,120]
[424103273,1780591928000,686.0,0.0003013,120]
[424103276,1780591929000,500.0,0.00014982,2]
[424103275,1780591929000,448.0,0.0003013,120]
[424103274,1780591929000,1602.0,0.0003013,120]
[424103277,1780591930000,1933.0,0.0003013,120]
[424103278,1780591931000,1142.0,0.0003013,120]
[424103279,1780591944000,-109.01783575,0.0001881,2]
[424103280,1780591944000,353.0,0.0003013,120]
[424103281,1780591944000,426.0,0.0003013,120]
[424103283,1780591944000,488.0,0.0003013,120]
[424103284,1780591944000,171.0,0.0003013,120]
[424103285,1780591944000,244.0,0.0003013,120]
[424103282,1780591944000,360.0,0.0003013,120]
[424103289,1780591945000,4148.0,0.0003013,120]
[424103288,1780591945000,1433.0,0.0003013,120]
[424103287,1780591945000,233.0,0.0003013,120]
[424103286,1780591945000,460.0,0.0003013,120]
[424103291,1780591973000,522.920125,0.00023672,120]
[424103292,1780591979000,183.218593,0.0002383,120]
[424103294,1780591983000,1514.0,0.0003013,120]
[424103293,1780591983000,449.0,0.0003013,120]
[424103295,1780591997000,-195.52,0.00018775,2]
[424103297,1780591997000,1947.0,0.0003013,120]
[424103296,1780591997000,892.0,0.0003013,120]
[424103298,1780591997000,1980.0,0.0003013,120]
[424103304,1780591998000,954.0,0.0003013,120]
[424103303,1780591998000,880.0,0.0003013,120]
[424103302,1780591998000,734.0,0.0003013,120]
[424103301,1780591998000,1716.0,0.0003013,120]
[424103300,1780591998000,1904.0,0.0003013,120]
[424103299,1780591998000,163.0,0.0003013,120]
[424103308,1780591999000,19176.0,0.0003013,120]
[424103307,1780591999000,498.0,0.0003013,120]
[424103306,1780591999000,399.0,0.0003013,120]
[424103305,1780591999000,348.0,0.0003013,120]
[424103309,1780592000000,2159.0,0.0003013,120]
[424103311,1780592031000,233.077231,0.00022563,120]
[424103312,1780592044000,423.0,0.0003013,120]
[424103313,1780592045000,1919.0,0.0003013,120]
[424103314,1780592046000,1171.0,0.0003013,120]
[424103315,1780592046000,637.0,0.0003013,120]
[424103316,1780592052000,10619.0,0.0003013,120]
[424103317,1780592077000,380.58,0.00027574,120]
[424103318,1780592104000,1792.0,0.0003013,120]
[424103319,1780592104000,1133.0,0.0003013,120]
[424103320,1780592109000,405.13,0.00030137,120]
[424103321,1780592475000,-151.0,0.00017739,2]
[424103325,1780592529000,-152.0,0.00017739,2]
[424103328,1780592583000,-151.0,0.00017739,2]
[424103329,1780592636000,-156.55,0.00016528,2]
[424103330,1780592653000,-155.18,0.00016528,2]
[424103331,1780592669000,-155.18,0.00016528,2]
[424103332,1780592683000,-180.29,0.00016528,2]
[424103333,1780592701000,-180.29,0.00016528,2]
[424103334,1780592702000,1108.6,0.0003,120]
[424103335,1780592715000,-151.42,0.00016528,2]
[424103336,1780592733000,-4.05,0.00016528,2]
[424103337,1780592940000,2000.0,0.00030136,120]
[424103338,1780592945000,250.0,0.00014,2]
[424103343,1780593031000,-174.98289198,0.00015462,2]
[424103341,1780593031000,-500.0,0.00015462,2]
[424103340,1780593031000,-258.96697316,0.00015462,2]
[424103342,1780593031000,-500.0,0.00015462,2]
[424103346,1780593031000,-300.0,0.00015462,2]
[424103345,1780593031000,-251.49311877,0.00015462,2]
[424103347,1780593031000,-160.0,0.00015462,2]
[424103348,1780593031000,-1200.0,0.00015462,2]
[424103344,1780593031000,-500.0,0.00015462,2]
[424103388,1780593032000,-150.0,0.00016528,2]
[424103389,1780593032000,-151.0,0.00016528,2]
[424103386,1780593032000,-150.0,0.00016528,2]
[424103385,1780593032000,-151.0,0.00016528,2]
[424103382,1780593032000,-150.0,0.00016528,2]
[424103384,1780593032000,-151.0,0.00016528,2]
[424103381,1780593032000,-453.0,0.00016528,2]
[424103383,1780593032000,-151.0,0.00016528,2]
[424103380,1780593032000,-452.0,0.00016528,2]
[424103379,1780593032000,-456.0,0.00016528,2]
[424103378,1780593032000,-150.0,0.00016528,2]
[424103390,1780593032000,-150.0,0.00016528,2]
[424103391,1780593032000,-150.0,0.00016528,2]
[424103404,1780593032000,-500.0,0.0001735,2]
[424103393,1780593032000,-505.0,0.0001659,2]
[424103398,1780593032000,-250.6,0.00016853,2]
[424103395,1780593032000,-275.77,0.00016801,2]
[424103392,1780593032000,-500.0,0.00016528,2]
[424103394,1780593032000,-166.66,0.0001679,2]
[424103397,1780593032000,-200.0,0.00016833,2]
[424103400,1780593032000,-250.0,0.00017008,2]
[424103405,1780593032000,-166.66,0.00017468,2]
[424103401,1780593032000,-160.05,0.00017051,2]
[424103403,1780593032000,-166.66,0.00017129,2]
[424103399,1780593032000,-1680.0,0.00016999,2]
[424103377,1780593032000,-448.0,0.00016528,2]
[424103396,1780593032000,-500.0,0.00016802,2]
[424103387,1780593032000,-151.0,0.00016528,2]
[424103355,1780593032000,-151.0,0.00015464,2]
[424103372,1780593032000,-451.0,0.00016527,2]
[424103350,1780593032000,-250.0,0.00015462,2]
[424103349,1780593032000,-300.0,0.00015462,2]
[424103351,1780593032000,-425.5773788,0.00015463,2]
[424103353,1780593032000,-151.0,0.00015464,2]
[424103354,1780593032000,-150.0,0.00015464,2]
[424103352,1780593032000,-250.0,0.00015463,2]
[424103363,1780593032000,-860.1,0.0001547,2]
[424103356,1780593032000,-151.0,0.00015464,2]
[424103358,1780593032000,-151.0,0.00015464,2]
[424103357,1780593032000,-151.0,0.00015464,2]
[424103361,1780593032000,-860.1,0.00015468,2]
[424103359,1780593032000,-860.1,0.00015464,2]
[424103362,1780593032000,-860.1,0.00015468,2]
[424103360,1780593032000,-860.1,0.00015466,2]
[424103365,1780593032000,-860.06,0.00015472,2]
[424103375,1780593032000,-450.0,0.00016528,2]
[424103371,1780593032000,-150.0,0.00016527,2]
[424103374,1780593032000,-151.0,0.00016528,2]
[424103369,1780593032000,-166.66,0.00016451,2]
[424103368,1780593032000,-166.66,0.00016112,2]
[424103370,1780593032000,-444.0,0.00016527,2]
[424103364,1780593032000,-860.1,0.0001547,2]
[424103367,1780593032000,-214.0,0.00015617,2]
[424103373,1780593032000,-446.0,0.00016528,2]
[424103366,1780593032000,-860.1,0.00015472,2]
[424103376,1780593032000,-457.0,0.00016528,2]
[424103406,1780593032000,-150.0,0.00017556,2]
[424103452,1780593032000,-200.0,0.00017847,2]
[424103402,1780593032000,-500.0,0.00017076,2]
[424103437,1780593032000,-150.0,0.00017739,2]
[424103436,1780593032000,-151.0,0.00017739,2]
[424103441,1780593032000,-150.0,0.00017741,2]
[424103442,1780593032000,-150.0,0.00017767,2]
[424103440,1780593032000,-500.0,0.0001774,2]
[424103439,1780593032000,-150.0,0.00017739,2]
[424103438,1780593032000,-151.0,0.00017739,2]
[424103445,1780593032000,-150.0,0.000178,2]
[424103448,1780593032000,-150.0,0.0001782,2]
[424103446,1780593032000,-150.0,0.000178,2]
[424103447,1780593032000,-166.66,0.00017807,2]
[424103456,1780593032000,-1852.42,0.00017884,2]
[424103435,1780593032000,-150.0,0.00017739,2]
[424103449,1780593032000,-150.0,0.00017835,2]
[424103457,1780593032000,-150.0,0.00017899,2]
[424103454,1780593032000,-150.0,0.00017881,2]
[424103453,1780593032000,-150.0,0.00017872,2]
[424103455,1780593032000,-150.0,0.00017881,2]
[424103459,1780593032000,-150.0,0.00017952,2]
[424103458,1780593032000,-150.0,0.00017925,2]
[424103460,1780593032000,-150.0,0.00017963,2]
[424103461,1780593032000,-150.0,0.00017974,2]
[424103462,1780593032000,-150.0,0.00017978,2]
[424103463,1780593032000,-218.558686,0.00018002,2]
[424103408,1780593032000,-150.0,0.00017556,2]
[424103464,1780593032000,-150.0,0.00018004,2]
[424103451,1780593032000,-150.0,0.00017846,2]
[424103432,1780593032000,-150.0,0.00017739,2]